bitfinex/quotes_SOLUSD_20240816
["timestamp","ask_amount","ask_price","bid_price","bid_amount"]
[1723831959668,20.0,139.11,139.03,45.0]
[1723831960954,20.0,139.11,138.97,20.0]
[1723831960955,20.0,139.11,138.97,17.9886]
[1723831961145,45.0,139.1,138.97,25.1843]
[1723831961351,45.0,139.1,138.9,67.9571]
[1723831961352,6.1771,139.08,138.91,7.1987]
[1723831961554,35.9662,139.07,138.92,7.1979]
[1723831961859,51.2801,139.06,138.91,25.1951]
[1723831962065,20.0,139.05,138.91,25.1951]
[1723831962248,45.0,139.04,138.91,25.1951]
[1723831962431,20.0,139.03,138.91,25.1951]
[1723831962634,20.0,139.03,138.92,7.1982]
[1723831963362,20.0,139.03,138.91,25.1952]
[1723831963562,20.0,139.03,138.91,17.9964]
[1723831963863,20.0,139.03,138.92,7.198]
[1723831964231,20.0,139.05,138.92,7.198]
[1723831964447,7.1961,138.97,138.92,7.198]
[1723831964644,20.0,139.05,138.91,25.1951]
[1723831964645,7.1964,138.96,138.91,25.1951]
[1723831964862,7.1964,138.96,138.93,45.0]
[1723831965159,7.1968,138.95,138.92,45.0]
[1723831965460,7.1964,138.96,138.92,45.0]
[1723831965961,7.1959,138.97,138.92,52.1983]
[1723831966169,7.1963,138.96,138.92,45.0]
[1723831967762,47.97710255,139.04,138.92,45.0]
[1723831967986,20.0,139.03,138.93,7.1975]
[1723831968136,2.97710255,139.04,138.93,7.1975]
[1723831968479,20.0,139.05,138.94,45.0]
[1723831969377,20.0,139.05,138.92,7.1982]
[1723831969756,45.0,139.04,138.92,7.1982]
[1723831970163,20.0,139.03,138.92,7.1982]
[1723831970352,20.0,139.03,138.91,17.9964]
[1723831970782,20.0,139.03,138.91,25.1949]
[1723831970952,20.0,139.03,138.92,7.1983]
[1723831971353,6.0583,139.02,138.91,17.9964]
[1723831971557,7.1969,138.95,138.91,17.9964]
[1723831971860,7.1969,138.95,138.9,7.1989]
[1723831972193,6.0583,139.02,138.89,7.1998]
[1723831972386,20.0,139.01,138.89,7.1998]
[1723831972551,7.1977,138.94,138.89,7.1998]
[1723831972752,7.1977,138.94,138.9,45.0]
[1723831973065,7.1951,138.99,138.94,7.1969]
[1723831973749,7.1958,138.97,138.92,25.1935]
[1723831974365,7.1954,138.98,138.93,52.1977]
[1723831974780,7.1958,138.97,138.93,45.0]
[1723831974967,7.1958,138.97,138.93,52.1978]
[1723831975162,8.95368265,139.02,138.95,7.1967]
[1723831975163,7.1944,139.0,138.95,7.1967]
[1723831975363,7.1944,139.0,138.96,7.1963]
[1723831975562,6.0583,139.02,138.97,7.1957]
[1723831975955,6.0583,139.02,138.97,7.1956]
[1723831976157,6.0583,139.02,138.96,25.1861]
[1723831976688,6.0583,139.02,138.96,17.99]
[1723831977069,6.0583,139.02,138.93,45.0]
[1723831977386,6.0583,139.02,138.9,25.1967]
[1723831977387,20.0,139.01,138.9,25.1967]
[1723831978773,20.0,139.01,138.88,36.0006]
[1723831979090,20.0,139.01,138.86,2.31179989]
[1723831979091,7.1974,138.94,138.9,7.1993]
[1723831979958,7.1969,138.95,138.9,7.1993]
[1723831980374,7.1969,138.95,138.91,17.9969]
[1723831980586,7.1963,138.96,138.91,25.1956]
[1723831980881,7.1978,138.93,138.89,7.1996]
[1723831981273,7.1975,138.94,138.89,7.1996]
[1723831981464,7.1984,138.92,138.88,18.0005]
[1723831981998,7.2002,138.89,138.86,0.8737463]
[1723831982664,6.2528,138.91,138.86,0.8737463]
[1723831982885,13.4518,138.91,138.86,8.0748463]
[1723831983461,6.2528,138.91,138.86,0.8737463]
[1723831985082,20.0,138.9,138.86,0.8737463]
[1723831986401,7.2009,138.87,138.86,0.8737463]
[1723831986989,20.0,138.9,138.8,7.2045]
[1723831987232,20.0,138.9,138.83,7.46245267]
[1723831987233,7.2025,138.84,138.83,7.46245267]
[1723831987493,7.2035,138.82,138.77,7.2061]
[1723831987699,7.2021,138.85,138.83,7.46324865]
[1723831987988,6.2528,138.91,138.78,93.86]
[1723831988171,7.1978,138.93,138.86,18.0032]
[1723831988379,7.1974,138.94,138.83,21.64]
[1723831988567,7.1979,138.93,138.88,25.2008]
[1723831988762,7.1979,138.93,138.89,45.0]
[1723831989382,7.1979,138.93,138.88,25.2008]
[1723831989579,7.1984,138.92,138.88,18.0007]
[1723831989787,7.198,138.93,138.89,45.0]
[1723831990174,6.0091,138.96,138.86,7.2013]
[1723831990377,6.0091,138.96,138.85,18.0043]
[1723831990593,6.0091,138.96,138.83,7.4604685]
[1723831991299,15.4608,138.94,138.83,7.4604685]
[1723831991501,6.176,138.92,138.83,7.4604685]
[1723831991808,20.0,138.91,138.83,7.4604685]
[1723831993981,7.2022,138.85,138.83,7.4604685]
[1723831994604,13.372,138.97,138.91,7.1989]
[1723831994777,6.176,138.97,138.84,52.22]
[1723831994978,7.1967,138.96,138.9,25.1963]
[1723831995520,6.5523,139.01,138.92,17.9946]
[1723831995720,6.5523,139.01,138.87,56.0039]
[1723831995721,13.746,139.01,138.96,7.1962]
[1723831996089,6.5523,139.01,138.83,405.3]
[1723831996396,7.2005,138.88,138.87,45.0]
[1723831996607,6.0327,138.91,138.81,18.009]
[1723831997114,7.2009,138.88,138.82,7.2034]
[1723831997291,7.1999,138.89,138.81,18.009]
[1723831997484,7.1999,138.89,138.79,36.0246]
[1723831997485,6.0327,138.91,138.86,7.2012]
[1723831998087,20.0,139.06,138.87,7.2008]
[1723831998088,6.0327,139.04,138.87,7.2008]
[1723831998293,6.0327,139.04,138.91,7.1988]
[1723831998495,6.0327,139.04,138.88,18.0008]
[1723831999103,6.0327,139.04,138.89,45.0]
[1723832000030,6.4038,139.01,138.82,33.0346]
[1723832000325,15.4608,139.09,138.82,18.0086]
[1723832000326,6.4038,138.99,138.82,18.0086]
[1723832000488,45.0,138.98,138.84,18.0054]
[1723832000688,20.0,138.97,138.85,7.2019]
[1723832000924,20.0,138.97,138.84,25.2078]
[1723832001221,45.0,138.96,138.84,25.2078]
[1723832001418,20.0,138.95,138.84,25.2078]
[1723832001789,20.0,138.95,138.84,18.0054]
[1723832002391,7.2,138.89,138.84,18.0054]
[1723832002592,6.2113,138.88,138.84,18.0054]
[1723832002897,7.201,138.87,138.83,7.47487056]
[1723832003391,7.2021,138.85,138.83,7.47487056]
[1723832003784,7.2025,138.84,138.83,7.47487056]
[1723832003988,7.2021,138.85,138.83,7.47487056]
[1723832004504,7.2015,138.86,138.83,7.47487056]
[1723832004699,6.2113,138.88,138.84,1.43881394]
[1723832004895,6.2113,138.88,138.84,8.64131394]
[1723832005123,6.2113,138.88,138.84,1.43881394]
[1723832005300,13.4117,138.88,138.83,14.67777056]
[1723832005619,6.2113,138.88,138.83,7.47487056]
[1723832007028,6.4179,138.92,138.86,18.0029]
[1723832007245,6.4179,138.92,138.83,7.47487056]
[1723832007759,6.4179,138.92,138.84,45.0]
[1723832007926,6.4179,138.92,138.83,7.47487056]
[1723832008260,6.4179,138.92,138.84,45.0]
[1723832008433,20.0,138.91,138.84,52.2024]
[1723832008826,20.0,138.91,138.84,45.0]
[1723832010146,7.2004,138.88,138.84,45.0]
[1723832010521,7.1999,138.89,138.84,52.2021]
[1723832010722,7.1999,138.89,138.85,1.22360773]
[1723832011455,7.1999,138.89,138.84,52.2021]
[1723832011627,6.4179,138.92,138.83,7.47487056]
[1723832012551,7.2006,138.88,138.83,14.67747056]
[1723832012927,6.4179,138.92,138.83,7.47487056]
[1723832013163,7.2025,138.84,138.83,7.47487056]
[1723832013363,7.2037,138.82,138.77,7.2061]
[1723832013653,7.2037,138.82,138.76,18.0158]
[1723832013654,7.2044,138.81,138.78,0.33325891]
[1723832013855,80.2265,138.91,138.76,25.2223]
[1723832013856,7.2036,138.82,138.77,7.2061]
[1723832014060,7.2036,138.82,138.78,0.33325891]
[1723832014231,7.2031,138.83,138.78,7.53873489]
[1723832014628,7.2025,138.84,138.79,7.205]
[1723832014827,7.2025,138.84,138.8,0.33321088]
[1723832015121,7.203,138.83,138.78,25.2188]
[1723832015330,7.203,138.83,138.79,0.33323489]
[1723832015523,7.2027,138.84,138.79,7.53821088]
[1723832016357,7.2027,138.84,138.8,7.47686439]
[1723832016950,7.2027,138.84,138.8,14.68136439]
[1723832017130,35.2265,138.91,138.8,26.92773537]
[1723832017460,15.2265,138.91,138.82,7.2032]
[1723832018046,6.4179,138.92,138.84,7.2024]
[1723832018231,6.4179,138.92,138.82,18.0085]
[1723832018432,6.4179,138.92,138.82,25.2116]
[1723832018631,6.4179,138.92,138.83,7.203]
[1723832018935,6.4179,138.92,138.82,18.0085]
[1723832019138,6.4179,138.92,138.83,7.2029]
[1723832019343,6.4179,138.92,138.82,25.2119]
[1723832019344,20.0,138.91,138.82,25.2119]
[1723832019542,20.0,138.91,138.83,7.203]
[1723832019752,20.0,138.91,138.84,52.2025]
[1723832019966,20.0,138.91,138.83,7.2026]
[1723832020127,20.0,138.91,138.84,52.2023]
[1723832020730,21.9403,138.96,138.88,7.2004]
[1723832020932,21.9403,138.96,138.91,7.1989]
[1723832020933,6.6557,138.96,138.91,7.1989]
[1723832021447,22.1165,139.01,138.92,52.1979]
[1723832021641,22.1165,139.01,138.92,45.0]
[1723832021939,22.1165,139.01,138.91,7.1988]
[1723832022152,22.1165,139.01,138.92,7.1983]
[1723832022339,22.1165,139.01,138.93,7.1978]
[1723832022953,22.1165,139.01,138.81,57.9584]
[1723832023135,22.1165,139.01,138.85,7.2018]
[1723832023353,20.0,139.0,138.85,7.2018]
[1723832023546,6.2907,138.99,138.85,7.2018]
[1723832023758,65.0,138.98,138.84,7.2024]
[1723832023946,6.5469,138.97,138.83,25.2097]
[1723832024152,65.0,138.96,138.84,7.2024]
[1723832024868,7.1999,138.89,138.85,7.202]
[1723832025550,7.1995,138.9,138.85,7.202]
[1723832026051,7.1999,138.89,138.85,7.202]
[1723832026236,65.0,138.96,138.84,7.2024]
[1723832027363,7.2004,138.89,138.84,7.2024]
[1723832027957,7.199,138.91,138.87,7.2009]
[1723832028375,7.199,138.91,138.86,7.2013]
[1723832028580,7.1985,138.92,138.87,7.2008]
[1723832028862,20.0,138.96,138.88,7.2]
[1723832029036,20.0,138.96,138.87,18.0019]
[1723832029238,7.1984,138.92,138.87,25.2025]
[1723832029475,7.1979,138.93,138.88,7.2004]
[1723832030268,7.1987,138.92,138.87,18.0019]
[1723832030469,7.1987,138.92,138.87,25.2025]
[1723832031540,7.1987,138.92,138.88,7.2004]
[1723832032059,7.198,138.93,138.88,7.2004]
[1723832033270,7.1984,138.92,138.88,7.2004]
[1723832033452,6.5469,138.97,138.87,25.2027]
[1723832034047,6.5469,138.97,138.81,72.0379]
[1723832034048,6.5469,138.97,138.84,18.0061]
[1723832034364,7.2002,138.89,138.85,7.2019]
[1723832034571,7.1995,138.9,138.85,7.2019]
[1723832034951,7.1995,138.9,138.84,18.0061]
[1723832034952,7.199,138.91,138.86,7.2013]
[1723832035145,7.199,138.91,138.87,7.2009]
[1723832035546,6.5469,138.97,138.88,18.0007]
[1723832035763,6.5469,138.97,138.9,17.998]
[1723832035957,6.5469,138.97,138.93,7.1974]
[1723832037375,6.5469,138.97,138.89,62.9991]
[1723832037545,6.5469,138.97,138.81,35.6884]
[1723832037850,6.5469,138.97,138.86,25.2041]
[1723832038173,20.0,138.96,138.86,25.2041]
[1723832039145,20.0,138.96,138.86,18.0028]
[1723832039349,20.0,138.96,138.85,7.2019]
[1723832039656,20.0,138.96,138.84,7.2024]
[1723832039974,20.0,138.96,138.83,18.007]
[1723832040149,45.0,138.95,138.83,25.21]
[1723832040351,20.0,138.94,138.85,7.2018]
[1723832040554,20.0,138.94,138.84,7.2023]
[1723832041440,20.0,138.94,138.83,25.2098]
[1723832041743,20.0,138.94,138.84,7.2025]
[1723832042348,20.0,138.96,138.84,7.2025]
[1723832042551,6.5469,138.97,138.85,18.0047]
[1723832042778,6.5469,138.97,138.87,7.2006]
[1723832043986,6.5469,138.97,138.89,7.1994]
[1723832044855,6.5469,138.97,138.9,7.1994]
[1723832045056,6.5469,138.97,138.89,7.1997]
[1723832045272,6.5469,138.97,138.9,7.1993]
[1723832047672,6.5469,138.97,138.89,25.1992]
[1723832049164,6.5469,138.97,138.9,52.1992]
[1723832049370,6.5469,138.97,138.9,7.1992]
[1723832049684,6.5469,138.97,138.89,25.1992]
[1723832050363,6.5469,138.97,138.86,45.0]
[1723832050684,20.0,138.96,138.86,52.2014]
[1723832050891,20.0,138.96,138.86,7.2014]
[1723832051462,20.0,138.96,138.87,7.2009]
[1723832051870,20.0,138.96,138.84,7.2024]
[1723832052078,20.0,138.96,138.84,8.28408124]
[1723832052282,45.0,138.95,138.83,7.2029]
[1723832052488,20.0,138.94,138.83,7.2029]
[1723832052992,21.6728,138.93,138.79,18.0119]
[1723832053286,20.0,138.92,138.79,25.2166]
[1723832054663,20.0,138.92,138.8,45.0]
[1723832054858,20.0,138.92,138.77,7.2057]
[1723832054859,6.5128,138.91,138.77,7.2057]
[1723832055075,65.0,138.9,138.78,0.33325891]
[1723832055388,65.0,138.9,138.79,7.2051]
[1723832055389,20.0,138.9,138.79,7.2051]
[1723832055588,20.0,138.9,138.8,0.33321088]
[1723832055773,20.0,138.9,138.79,7.2051]
[1723832055984,19.02527579,138.9,138.79,7.2051]
[1723832056361,19.02527579,138.9,138.8,45.0]
[1723832057258,19.02527579,138.9,138.81,1.4385068]
[1723832057457,6.5128,138.91,138.82,1.43788506]
[1723832057689,6.5128,138.91,138.84,7.202]
[1723832057898,6.5128,138.91,138.85,52.2019]
[1723832058193,6.4527,138.97,138.86,19.44237776]
[1723832058381,6.4527,138.97,138.89,7.1998]
[1723832058567,6.4527,138.97,138.9,8.6380633]
[1723832058769,6.4527,138.97,138.9,7.1993]
[1723832059388,6.4527,138.97,138.89,7.1997]
[1723832059586,6.4527,138.97,138.9,1.43850233]
[1723832060062,6.4527,138.97,138.9,45.0]
[1723832060263,6.4527,138.97,138.87,7.2009]
[1723832060684,6.4527,138.97,138.88,7.2004]
[1723832060898,6.4527,138.97,138.88,52.2004]
[1723832061063,6.4527,138.97,138.89,7.1997]
[1723832061267,6.4527,138.97,138.9,45.0]
[1723832062762,6.4527,138.97,138.9,52.1993]
[1723832062998,6.4527,138.97,138.91,7.1985]
[1723832063294,6.4527,138.97,138.92,45.0]
[1723832064480,6.4527,138.97,138.91,17.9967]
[1723832064685,6.4527,138.97,138.92,7.1982]
[1723832064900,15.4608,139.03,138.9,45.0]
[1723832064901,6.0372,139.02,138.9,45.0]
[1723832065065,6.0372,139.02,138.96,7.1962]
[1723832065265,6.0372,139.02,138.95,25.1881]
[1723832066463,6.0372,139.02,138.96,45.0]
[1723832067795,20.0,139.01,138.89,7.1999]
[1723832067989,20.0,139.01,138.89,25.1994]
[1723832068194,15.4608,139.0,138.87,7.2009]
[1723832068369,15.4608,139.0,138.88,7.2004]
[1723832068370,20.0,138.99,138.88,7.2004]
[1723832068563,15.4608,139.0,138.86,20.0]
[1723832069074,15.4608,139.0,138.92,7.1983]
[1723832069705,6.0372,139.02,138.93,52.1978]
[1723832069876,20.0,139.01,138.93,45.0]
[1723832070273,20.0,139.01,138.87,18.0016]
[1723832070496,20.0,139.01,138.86,18.0028]
[1723832070497,6.2591,138.98,138.86,18.0028]
[1723832070703,20.0,138.97,138.86,18.0028]
[1723832070889,20.0,138.97,138.86,25.2038]
[1723832071999,20.0,138.97,138.86,18.0028]
[1723832072214,20.0,138.97,138.88,18.0007]
[1723832072506,20.0,138.97,138.89,52.1997]
[1723832072811,20.0,138.97,138.89,45.0]
[1723832073113,20.0,138.97,138.89,52.1998]
[1723832073406,6.2591,138.98,138.9,7.1993]
[1723832073808,6.2591,138.98,138.91,53.63788025]
[1723832073973,6.2591,138.98,138.93,7.1978]
[1723832074168,6.2591,138.98,138.94,46.43876952]
[1723832074989,15.3887,139.04,138.94,53.63596952]
[1723832074990,6.5698,139.03,138.94,53.63596952]
[1723832075377,6.5698,139.03,138.96,7.1961]
[1723832075583,6.5698,139.03,138.97,1.43843386]
[1723832075783,6.5698,139.03,138.95,26.62662405]
[1723832075992,6.5698,139.03,138.96,8.63458618]
[1723832076192,6.5503,139.07,138.97,17.9889]
[1723832076517,6.5503,139.07,138.99,17.9862]
[1723832076669,6.5503,139.07,139.0,1.43785988]
[1723832077283,6.5503,139.07,139.01,7.1933]
[1723832077471,6.5503,139.07,139.02,1.43765302]
[1723832077890,6.6353,139.13,139.03,7.1926]
[1723832078481,6.6353,139.13,139.02,52.193]
[1723832078686,6.6353,139.13,138.98,25.1824]
[1723832078973,6.6353,139.13,138.98,17.9877]
[1723832079179,20.0,139.12,138.94,17.9927]
[1723832079381,20.0,139.12,138.97,7.23852358]
[1723832079797,20.0,139.12,138.98,17.9871]
[1723832079979,20.0,139.12,138.99,7.1945]
[1723832080582,20.0,139.12,138.98,25.1822]
[1723832080780,20.0,139.12,138.99,45.0]
[1723832080984,6.269,139.11,138.95,17.9917]
[1723832081195,20.0,139.1,138.97,0.02747892]
[1723832081405,20.0,139.1,138.96,0.02747892]
[1723832082400,51.3338,139.09,138.96,0.02747892]
[1723832082721,20.0,139.08,138.96,0.02747892]
[1723832083299,60.4608,139.07,138.97,0.02747892]
[1723832083618,26.3096,139.06,138.89,17.9991]
[1723832083794,6.3096,139.04,138.89,17.9991]
[1723832083988,20.0,139.03,138.9,7.1992]
[1723832084301,20.0,139.03,138.91,1.43904465]
[1723832084990,20.0,139.03,138.94,7.1971]
[1723832085195,20.0,139.03,138.93,17.9937]
[1723832085196,6.3096,139.04,138.95,53.63498494]
[1723832085799,6.3096,139.04,138.95,52.1964]
[1723832086210,6.3096,139.04,138.93,17.9937]
[1723832086613,20.0,139.03,138.91,7.1988]
[1723832087005,20.0,139.03,138.92,7.1983]
[1723832087514,20.0,139.03,138.93,7.1978]
[1723832088307,20.0,139.03,138.94,45.0]
[1723832089514,6.3096,139.04,138.94,45.0]
[1723832089828,20.0,139.03,138.94,45.0]
[1723832090025,20.0,139.03,138.91,7.1987]
[1723832090226,20.0,139.03,138.92,45.0]
[1723832091023,20.0,139.03,138.92,52.1983]
[1723832091423,6.2413,139.02,138.87,18.0016]
[1723832091608,20.0,139.01,138.89,7.1995]
[1723832091796,20.0,139.01,138.9,7.1994]
[1723832092425,15.4608,139.0,138.89,7.1998]
[1723832092602,15.4608,139.0,138.89,7.1994]
[1723832093006,15.4608,139.0,138.89,8.63766075]
[1723832093324,15.4608,139.0,138.89,17.9994]
[1723832093325,6.1148,138.99,138.89,17.9994]
[1723832093533,20.0,138.98,138.87,7.2009]
[1723832093705,20.0,138.98,138.87,7.53394291]
[1723832093898,20.0,138.98,138.87,7.2009]
[1723832094101,20.0,138.98,138.88,7.2003]
[1723832094431,6.1148,138.99,138.89,7.1999]
[1723832094720,20.0,138.98,138.89,7.1999]
[1723832095102,20.0,138.98,138.9,45.0]
[1723832096021,20.0,138.98,138.9,46.43854547]
[1723832096597,20.0,138.98,138.91,1.43851901]
[1723832096901,20.0,138.98,138.88,18.0005]
[1723832097902,6.0652,138.95,138.86,7.48035465]
[1723832098108,6.0652,138.95,138.77,21.40695516]
[1723832098329,65.0,138.94,138.82,25.2118]
[1723832098635,20.0,138.94,138.82,25.2118]
[1723832098929,20.0,138.94,138.84,7.2024]
[1723832099142,20.0,138.94,138.83,14.69174196]
[1723832100237,20.0,138.94,138.84,45.0]
[1723832101338,6.0652,138.95,138.85,21.64]
[1723832101511,6.0652,138.95,138.88,7.2001]
[1723832101716,6.0652,138.95,138.89,45.0]
[1723832102840,6.0652,138.95,138.88,45.0]
[1723832103018,6.0652,138.95,138.88,63.0007]
[1723832103224,6.0652,138.95,138.89,7.1999]
[1723832103534,6.0652,138.95,138.9,45.86941383]
[1723832104439,6.0652,138.95,138.9,53.06881383]
[1723832104646,6.0652,139.0,138.92,7.1982]
[1723832104937,6.0652,139.0,138.95,7.1964]
[1723832105235,6.0652,139.0,138.96,17.9896]
[1723832105542,6.5795,139.04,138.96,62.9896]
[1723832105710,6.5795,139.04,138.97,7.1953]
[1723832105910,6.5795,139.04,138.98,45.0]
[1723832106140,6.5795,139.04,139.0,7.1941]
[1723832106443,6.5795,139.09,139.03,7.1926]
[1723832106743,6.5795,139.09,139.03,7.76154436]
[1723832107116,6.5795,139.09,139.04,45.0]
[1723832107616,6.5795,139.09,139.03,45.0]
[1723832108218,6.5795,139.09,139.03,1.43605978]
[1723832108438,6.5795,139.09,139.02,45.0]
[1723832108650,6.5795,139.09,139.01,45.0]
[1723832109132,6.5795,139.09,139.01,52.1932]
[1723832109342,6.5795,139.09,139.02,7.193]
[1723832109640,6.5795,139.09,139.01,45.0]
[1723832109856,6.5795,139.09,139.03,52.1922]
[1723832110343,6.5795,139.09,139.03,45.0]
[1723832111155,6.5795,139.09,138.99,17.9865]
[1723832111356,6.5795,139.09,139.01,7.1933]
[1723832112220,6.5795,139.09,138.99,25.181]
[1723832112548,6.5795,139.09,138.99,25.1812]
[1723832113249,6.5795,139.09,139.0,7.194]
[1723832113417,6.5795,139.09,139.02,17.9827]
[1723832113613,6.5795,139.09,139.03,46.23122901]
[1723832113831,6.5795,139.09,139.04,7.1917]
[1723832114026,6.5795,139.09,139.05,45.0]
[1723832115154,20.0,139.32,139.05,65.0]
[1723832115324,6.3223,139.2,139.09,7.1891]
[1723832115526,6.3223,139.2,139.1,62.9717]
[1723832115852,6.3223,139.2,139.1,70.1607]
[1723832116025,6.3223,139.2,139.1,62.9717]
[1723832116219,6.3223,139.2,139.13,7.1874]
[1723832116444,6.3223,139.2,139.14,52.1866]
[1723832116652,6.3223,139.2,139.14,45.0]
[1723832116819,6.3223,139.2,139.09,385.3]
[1723832117622,6.3223,139.2,139.04,7.192]
[1723832117847,20.0,139.19,139.05,8.62892134]
[1723832118150,20.0,139.19,139.03,17.9815]
[1723832118354,65.0,139.19,139.04,1.43721244]
[1723832118521,65.0,139.19,139.05,1.43710908]
[1723832118746,20.0,139.19,139.06,1.43700573]
[1723832118965,20.0,139.19,139.08,7.1899]
[1723832119172,20.0,139.19,139.07,25.1662]
[1723832119464,20.0,139.19,139.04,25.1719]
[1723832119674,6.4262,139.17,139.02,7.193]
[1723832119978,6.4262,139.17,139.01,273.6105]
[1723832119979,65.0,139.16,139.01,273.6105]
[1723832120138,20.0,139.16,139.05,7.1912]
[1723832120337,20.0,139.16,139.04,17.9801]
[1723832120759,20.0,139.16,139.02,7.1928]
[1723832121158,20.0,139.16,139.03,7.23562358]
[1723832121467,6.2268,139.14,139.03,0.04312358]
[1723832121668,6.2268,139.14,138.97,17.9888]
[1723832121860,6.2268,139.12,138.98,0.04312358]
[1723832122370,20.0,139.11,138.99,7.1947]
[1723832122560,20.0,139.11,139.0,0.04312358]
[1723832122753,6.2593,139.1,138.94,17.9928]
[1723832123082,20.0,139.09,138.94,17.9928]
[1723832123241,20.0,139.09,138.91,385.3]
[1723832123242,21.8901,139.08,138.91,385.3]
[1723832123437,6.4293,139.07,138.88,292.3662]
[1723832123742,60.4608,139.08,138.88,18.0005]
[1723832123743,6.4293,139.05,138.88,18.0005]
[1723832123941,20.0,139.06,138.85,18.0045]
[1723832123942,6.4293,139.03,138.85,18.0045]
[1723832124137,15.4608,139.01,138.87,14.67603092]
[1723832124337,20.0,139.0,138.88,0.59087529]
[1723832124785,20.0,139.0,138.9,7.1989]
[1723832124939,20.0,139.0,138.9,25.197]
[1723832125576,20.0,139.0,138.91,7.1985]
[1723832125842,6.4293,139.03,138.95,7.1968]
[1723832126043,6.4293,139.03,138.96,7.1962]
[1723832126271,6.4293,139.03,138.95,7.1967]
[1723832126477,6.4293,139.03,138.96,45.0]
[1723832126843,6.4293,139.03,138.96,52.1961]
[1723832127038,6.4293,139.03,138.96,25.1862]
[1723832127272,6.4293,139.03,138.97,45.0]
[1723832127458,6.4293,139.03,138.99,7.1946]
[1723832127855,6.4293,139.03,139.0,45.0]
[1723832128054,6.4293,139.03,138.96,0.9239128]
[1723832128374,6.4293,139.03,138.88,37.43919485]
[1723832128540,6.4293,139.03,138.89,0.04312358]
[1723832128746,20.0,139.02,138.89,1.48189375]
[1723832129375,20.0,139.02,138.93,7.1976]
[1723832129548,20.0,139.02,138.94,0.04312358]
[1723832129906,20.0,139.02,138.94,7.24042358]
[1723832130045,20.0,139.02,138.94,7.1973]
[1723832130246,6.4293,139.03,138.96,7.1958]
[1723832130455,6.4293,139.03,138.94,20.0]
[1723832130769,6.1563,139.11,138.96,20.0]
[1723832131072,6.1563,139.11,139.01,17.9842]
[1723832131570,6.1563,139.11,139.02,1.43646255]
[1723832131755,6.1563,139.11,139.03,7.1922]
[1723832131959,6.1563,139.11,138.97,21.89098]
[1723832131960,6.1563,139.11,138.95,45.0]
[1723832132158,6.1563,139.11,138.96,7.1959]
[1723832132350,6.1563,139.11,138.98,7.1951]
[1723832132547,6.1563,139.11,138.97,25.1843]
[1723832132751,20.0,139.1,138.97,25.1843]
[1723832133174,20.0,139.1,138.95,7.1967]
[1723832133581,6.0288,139.09,138.95,7.1967]
[1723832133785,20.0,139.08,138.95,7.1967]
[1723832134483,45.0,139.07,138.95,7.1967]
[1723832134686,20.0,139.06,138.95,7.1967]
[1723832134889,20.0,139.06,138.94,17.9927]
[1723832135262,20.0,139.06,138.91,17.9966]
[1723832135461,20.0,139.06,138.91,25.1954]
[1723832135462,6.536,139.05,138.91,25.1954]
[1723832135668,20.0,139.04,138.92,0.04312358]
[1723832135884,20.0,139.04,138.92,7.24142358]
[1723832136068,20.0,139.04,138.92,0.04312358]